{"text_format":"1","workbook":"xlsx","n_sheets":1,"sheets":["Sheet1"],"not_rendered":{"charts":0,"images":1,"macros":1,"external_links":0,"defined_names":1,"comments":0,"pivot_tables":0},"unopened":[],"bounds":{"document_bytes":16777216,"sheet_cells":100000,"rows_first":2000,"rows_last":500,"rows_between":2000,"halvings":0,"cell_chars":16384,"cell_head_chars":4096},"cells_cut":0,"cells_raw":0,"read":"whole","date_system":"1900"}

{"sheet":"Sheet1","index":0,"n_rows":32,"n_cols":13,"rows_kept":32,"cut":false,"hidden":false,"merged":[[0,9,1,9],[31,0,31,1],[2,0,2,8],[0,2,0,5],[0,7,0,8],[3,9,8,9]]}
["Developed by :","RAHUL FAGERIA","FROM- JHUNJHUNU- RAJASTHAN",null,null,null,"07827920818","RAHULFAGERIA@GMAIL.COM"]
["पाना है जो मुकाम वो मुकाम अभी बाकी है ,","अभी तो आएं हैं जमीन पर ,","अभी आसमान की उड़ान बाकी है,",null,"अभी तो सिर्फ सुना है लोगों ने मेरा नाम,",null,"अब इस नाम की पहचान बनाना बाकी है"]
["DEPRECIATION CHART AS PER  INCOME TAX ACT 1961"]
["PARTICULAR (Name Of Assets)","UNDER GROUP","DEP. RATE","OPENING WDV","PURCHASE IN 1ST HALF","PURCHASE IN 2ND HALF","NET ASSETS","DEPRECIATION ","CLOSING WDV","Download Source- http://taxguru.in/",null,"Assets Class","Rate"]
["SCODA","Motor Cars",{"$f":"IF(B5=\"\",\"\",IFERROR(VLOOKUP(B5,$L$5:$M$17,2,0),0))","v":0.15},null,null,1800000,{"$f":"+D5+E5+F5","v":1800000},{"$f":"IF(C5=\"\",\"\",(D5+E5)*C5+((F5*C5)/2))","v":135000},{"$f":"IF(C5=\"\",\"\",+G5-H5)","v":1665000}]
["JAQUAR","Motor Cars",{"$f":"IF(B6=\"\",\"\",IFERROR(VLOOKUP(B6,$L$5:$M$17,2,0),0))","v":0.15},null,7000000,null,{"$f":"+D6+E6+F6","v":7000000},{"$f":"IF(C6=\"\",\"\",(D6+E6)*C6+((F6*C6)/2))","v":1050000},{"$f":"IF(C6=\"\",\"\",+G6-H6)","v":5950000},null,null,"Plant & Machinery",0.15]
["DELL LAPTOP","Computer",{"$f":"IF(B7=\"\",\"\",IFERROR(VLOOKUP(B7,$L$5:$M$17,2,0),0))","v":0.6},null,null,38000,38000,11400,26600,null,null,"Furniture & Fixtures",0.1]
["HP DESKTOP ","Computer",0.6,null,12000,null,12000,7200,4800,null,null,"Computer",0.6]
["FAN","Furniture & Fixtures",0.1,null,1800,null,1800,180,1620,null,null,"Motor Cars",0.15]
["AIRCONDITIONER","Furniture & Fixtures",0.1,null,null,26000,26000,1300,24700,null,null,"Motor Cars used in a business of running them hire",0.3]
["HP LAPTOP","Computer",0.6,null,null,36000,36000,10800,25200,null,null,"Buildings - Residential",0.05]
[null,"Buildings - Residential",0.05,null,null,null,0,0,0,null,null,"Buildings - General",0.1]
[null,"Motor Cars used in a business of running them hire",0.3,null,null,null,0,0,0,null,null,"Buildings - Temporary",1]
[null,"Buildings - General",0.1,null,null,null,0,0,0,null,null,"Land",0]
[null,"Buildings - Temporary",1,null,null,null,0,0,0,null,null,"Air Polluction Control Equipment",1]
[null,"Land",0,null,null,null,0,0,0,null,null,"Water Polluction Control Equipment",1]
[null,"Air Polluction Control Equipment",1,null,null,null,0,0,0,null,null,"Intengible Assets",0.25]
[null,"Water Polluction Control Equipment",1,null,null,null,0,0,0]
[null,null,"",null,null,null,0,"",""]
[null,null,"",null,null,null,0,"",""]
[null,null,"",null,null,null,0,"",""]
[null,null,"",null,null,null,0,"",""]
[null,null,"",null,null,null,0,"",""]
[null,null,"",null,null,null,0,"",""]
[null,null,"",null,null,null,0,"",""]
[null,null,"",null,null,null,0,"",""]
[null,null,"",null,null,null,0,"",""]
[null,null,"",null,null,null,0,"",""]
[null,null,"",null,null,null,0,"",""]
[null,null,"",null,null,null,0,"",""]
[null,null,"",null,null,null,0,"",""]
["SUB TOTAL ",null,null,{"$f":"SUBTOTAL(9,D5:D31)","v":0},7013800,1900000,8913800,1215880,7697920]